[Event "Late-Titled-Tuesday-Blitz-September-05-2023"]
[Site "Chess.com"]
[Date "2023.09.05"]
[Round "6"]
[White "jamengrand"]
[Black "JackRodgers"]
[Result "0-1"]
[WhiteElo "2363"]
[BlackElo "2601"]
[TimeControl "180+1"]
[EndTime "15:07:37 PDT"]
[Termination "JackRodgers won on time"]

1. e4 {[%clk 0:02:45.3]} 1... c5 {[%clk 0:02:59.5]} 2. Nf3 {[%clk 0:02:45.4]}
2... g6 {[%clk 0:02:59.6]} 3. d4 {[%clk 0:02:45]} 3... cxd4 {[%clk 0:03:00.5]}
4. c3 {[%clk 0:02:45.5]} 4... d3 {[%clk 0:02:59.2]} 5. Bxd3 {[%clk 0:02:44.7]}
5... Nc6 {[%clk 0:02:59.5]} 6. O-O {[%clk 0:02:41.4]} 6... Bg7 {[%clk
0:02:59.8]} 7. Re1 {[%clk 0:02:41.7]} 7... d6 {[%clk 0:02:58.8]} 8. h3 {[%clk
0:02:41.1]} 8... Nf6 {[%clk 0:02:58.8]} 9. c4 {[%clk 0:02:40.6]} 9... O-O {[%clk
0:02:58.5]} 10. Nc3 {[%clk 0:02:40.9]} 10... Bd7 {[%clk 0:02:57.8]} 11. Bg5
{[%clk 0:02:39.6]} 11... Rc8 {[%clk 0:02:58.3]} 12. Rc1 {[%clk 0:02:39.3]} 12...
a6 {[%clk 0:02:58.4]} 13. b3 {[%clk 0:02:38.5]} 13... h6 {[%clk 0:02:58.7]} 14.
Bh4 {[%clk 0:02:38]} 14... Be6 {[%clk 0:02:58.8]} 15. Nd5 {[%clk 0:02:37.4]}
15... g5 {[%clk 0:02:55.4]} 16. Bg3 {[%clk 0:02:22.2]} 16... Nb8 {[%clk
0:02:55.3]} 17. h4 {[%clk 0:02:08.1]} 17... g4 {[%clk 0:02:52.7]} 18. Nh2 {[%clk
0:02:05]} 18... h5 {[%clk 0:02:51.6]} 19. Bf4 {[%clk 0:02:02.1]} 19... Nbd7
{[%clk 0:02:44.8]} 20. Nf1 {[%clk 0:01:57.6]} 20... Ne5 {[%clk 0:02:42.6]} 21.
Bxe5 {[%clk 0:01:50]} 21... dxe5 {[%clk 0:02:43.5]} 22. Ng3 {[%clk 0:01:50]}
22... Bxd5 {[%clk 0:02:26.9]} 23. exd5 {[%clk 0:01:46.7]} 23... Bh6 {[%clk
0:02:06.7]} 24. Rxe5 {[%clk 0:01:44]} 24... Qd6 {[%clk 0:01:59.7]} 25. Nf5
{[%clk 0:01:21.3]} 25... Qxe5 {[%clk 0:01:57.6]} 26. Nxh6+ {[%clk 0:01:21.6]}
26... Kh8 {[%clk 0:01:55.7]} 27. Qd2 {[%clk 0:01:16]} 27... Ng8 {[%clk
0:01:40.9]} 28. Re1 {[%clk 0:01:04.3]} 28... Qf6 {[%clk 0:01:35.9]} 29. Nf5
{[%clk 0:01:02.7]} 29... e6 {[%clk 0:01:32.8]} 30. Ng3 {[%clk 0:01:01.1]} 30...
Qxh4 {[%clk 0:01:21.8]} 31. Re5 {[%clk 0:00:56.6]} 31... f5 {[%clk 0:01:13.1]}
32. dxe6 {[%clk 0:00:47.7]} 32... Rce8 {[%clk 0:01:09.2]} 33. Bxf5 {[%clk
0:00:34.6]} 33... Qf6 {[%clk 0:01:07.5]} 34. Re1 {[%clk 0:00:26.1]} 34... h4
{[%clk 0:01:07.2]} 35. Nh5 {[%clk 0:00:09.2]} 35... Qxf5 {[%clk 0:01:02]} 36.
Qd4+ {[%clk 0:00:09.4]} 36... Nf6 {[%clk 0:00:54.8]} 37. Re5 {[%clk 0:00:09.1]}
37... Qb1+ {[%clk 0:00:51.4]} 38. Kh2 {[%clk 0:00:09.5]} 38... g3+ {[%clk
0:00:51.3]} 39. fxg3 {[%clk 0:00:06.4]} 39... hxg3+ {[%clk 0:00:52.2]} 40. Kh3
{[%clk 0:00:07]} 40... Qh1+ {[%clk 0:00:48.9]} 41. Kxg3 {[%clk 0:00:06]} 41...
Rg8+ {[%clk 0:00:48.1]} 42. Kf2 {[%clk 0:00:04.4]} 42... Rxg2+ {[%clk
0:00:44.2]} 43. Ke3 {[%clk 0:00:03.8]} 43... Qg1+ {[%clk 0:00:42.9]} 44. Kd3
{[%clk 0:00:03.3]} 44... Qd1+ {[%clk 0:00:34.6]} 45. Kc3 {[%clk 0:00:01.9]}
45... Qa1+ {[%clk 0:00:32.5]} 46. Kd3 {[%clk 0:00:01.4]} 46... Qxd4+ {[%clk
0:00:23]} 47. Kxd4 {[%clk 0:00:01.5]} 47... Nxh5 {[%clk 0:00:21.4]} 48. Rxh5+
{[%clk 0:00:02.4]} 48... Kg7 {[%clk 0:00:22.1]} 49. Kd5 {[%clk 0:00:02.6]} 49...
Rd2+ {[%clk 0:00:22]} 50. Kc5 {[%clk 0:00:01.8]} 50... Rxe6 {[%clk 0:00:20.7]}
0-1

[Event "Late-Titled-Tuesday-Blitz-September-05-2023"]
[Site "Chess.com"]
[Date "2023.09.05"]
[Round "6"]
[White "geordie_derraugh"]
[Black "djano"]
[Result "1/2-1/2"]
[WhiteElo "2489"]
[BlackElo "2622"]
[TimeControl "180+1"]
[EndTime "15:07:39 PDT"]
[Termination "Game drawn by repetition"]

1. e4 {[%clk 0:03:00.9]} 1... c5 {[%clk 0:02:59.2]} 2. Nf3 {[%clk 0:02:59.6]}
2... Nc6 {[%clk 0:02:59.8]} 3. Bb5 {[%clk 0:02:57.9]} 3... e5 {[%clk 0:02:59.8]}
4. Bxc6 {[%clk 0:02:55.7]} 4... bxc6 {[%clk 0:02:57.9]} 5. O-O {[%clk
0:02:55.5]} 5... d6 {[%clk 0:02:57.3]} 6. c3 {[%clk 0:02:54.9]} 6... Nf6 {[%clk
0:02:57.7]} 7. Re1 {[%clk 0:02:53.9]} 7... Be7 {[%clk 0:02:57.2]} 8. d4 {[%clk
0:02:53.7]} 8... cxd4 {[%clk 0:02:58.1]} 9. cxd4 {[%clk 0:02:54]} 9... exd4
{[%clk 0:02:57.9]} 10. Nxd4 {[%clk 0:02:53.4]} 10... Bd7 {[%clk 0:02:52.3]} 11.
Qc2 {[%clk 0:02:51.5]} 11... c5 {[%clk 0:02:47.9]} 12. Nf5 {[%clk 0:02:49]}
12... Bxf5 {[%clk 0:02:48]} 13. exf5 {[%clk 0:02:49.6]} 13... O-O {[%clk
0:02:48.7]} 14. Bg5 {[%clk 0:02:48.4]} 14... h6 {[%clk 0:02:40.8]} 15. Bh4
{[%clk 0:02:47.2]} 15... Re8 {[%clk 0:02:33.8]} 16. Nc3 {[%clk 0:02:46.9]} 16...
d5 {[%clk 0:02:30]} 17. Rad1 {[%clk 0:02:42.8]} 17... d4 {[%clk 0:02:29.6]} 18.
Bxf6 {[%clk 0:02:42.5]} 18... Bxf6 {[%clk 0:02:27.6]} 19. Ne4 {[%clk 0:02:42.6]}
19... Rc8 {[%clk 0:02:20.1]} 20. Nxf6+ {[%clk 0:02:39.9]} 20... gxf6 {[%clk
0:01:59.9]} 21. Qd2 {[%clk 0:02:32.3]} 21... Kh7 {[%clk 0:01:53.2]} 22. b3
{[%clk 0:02:06.5]} 22... Qd5 {[%clk 0:01:43.8]} 23. Qa5 {[%clk 0:01:55.7]} 23...
Rg8 {[%clk 0:01:28.9]} 24. g3 {[%clk 0:01:51.2]} 24... Qxf5 {[%clk 0:01:20.6]}
25. Qxa7 {[%clk 0:01:45.9]} 25... Kg7 {[%clk 0:01:13.8]} 26. Re7 {[%clk
0:01:32.3]} 26... Rgf8 {[%clk 0:01:04.7]} 27. Rde1 {[%clk 0:01:25.5]} 27... d3
{[%clk 0:00:59.4]} 28. Qd7 {[%clk 0:01:07.2]} 28... Qg6 {[%clk 0:00:46.9]} 29.
Qd6 {[%clk 0:00:59.5]} 29... Rfd8 {[%clk 0:00:41.8]} 30. Rd7 {[%clk 0:00:59.5]}
30... Rxd7 {[%clk 0:00:33.2]} 31. Qxd7 {[%clk 0:01:00.4]} 31... Ra8 {[%clk
0:00:32.5]} 32. a4 {[%clk 0:00:57.9]} 32... Rb8 {[%clk 0:00:32.5]} 33. Qd5
{[%clk 0:00:56.7]} 33... Rb4 {[%clk 0:00:27.6]} 34. Rd1 {[%clk 0:00:51.6]} 34...
Rd4 {[%clk 0:00:24.7]} 35. Qxc5 {[%clk 0:00:51.4]} 35... Qe4 {[%clk 0:00:24.9]}
36. Qc3 {[%clk 0:00:43.9]} 36... d2 {[%clk 0:00:19.6]} 37. Qe3 {[%clk
0:00:31.7]} 37... Qc2 {[%clk 0:00:19.7]} 38. Qe2 {[%clk 0:00:31]} 38... Rd3
{[%clk 0:00:12.7]} 39. b4 {[%clk 0:00:28.1]} 39... Qxa4 {[%clk 0:00:10.8]} 40.
Rxd2 {[%clk 0:00:26.6]} 40... Qa1+ {[%clk 0:00:06.3]} 41. Kg2 {[%clk 0:00:25.6]}
41... Qa8+ {[%clk 0:00:03.7]} 42. f3 {[%clk 0:00:25.7]} 42... Rxd2 {[%clk
0:00:03.3]} 43. Qxd2 {[%clk 0:00:26]} 43... Qa4 {[%clk 0:00:03.3]} 44. Qb2
{[%clk 0:00:25.3]} 44... Qb5 {[%clk 0:00:04]} 45. h4 {[%clk 0:00:24.9]} 45... h5
{[%clk 0:00:04.4]} 46. Qc3 {[%clk 0:00:24.4]} 46... Qd5 {[%clk 0:00:03.8]} 47.
Qb2 {[%clk 0:00:20.1]} 47... Qb5 {[%clk 0:00:03.8]} 48. Qd2 {[%clk 0:00:20.3]}
48... Qc4 {[%clk 0:00:02.9]} 49. Qf4 {[%clk 0:00:18.1]} 49... Qe2+ {[%clk
0:00:02.7]} 50. Kh3 {[%clk 0:00:18.2]} 50... Qf1+ {[%clk 0:00:03.1]} 51. Kh2
{[%clk 0:00:18.7]} 51... Qf2+ {[%clk 0:00:03.7]} 52. Kh1 {[%clk 0:00:18.2]}
52... Qf1+ {[%clk 0:00:04]} 53. Kh2 {[%clk 0:00:18.6]} 53... Qf2+ {[%clk
0:00:03.7]} 54. Kh1 {[%clk 0:00:19]} 54... Qf1+ {[%clk 0:00:03.7]} 55. Kh2
{[%clk 0:00:19.3]} 1/2-1/2

[Event "Late-Titled-Tuesday-Blitz-September-05-2023"]
[Site "Chess.com"]
[Date "2023.09.05"]
[Round "6"]
[White "IlanSchnaider"]
[Black "AquivaRubinstein"]
[Result "1/2-1/2"]
[WhiteElo "2738"]
[BlackElo "2490"]
[TimeControl "180+1"]
[EndTime "15:07:44 PDT"]
[Termination "Game drawn by repetition"]

1. e4 {[%clk 0:03:00.9]} 1... Nf6 {[%clk 0:02:58.2]} 2. e5 {[%clk 0:02:59.2]}
2... Nd5 {[%clk 0:02:58.4]} 3. d4 {[%clk 0:02:58.7]} 3... d6 {[%clk 0:02:58.8]}
4. c4 {[%clk 0:02:55]} 4... Nb6 {[%clk 0:02:58.6]} 5. exd6 {[%clk 0:02:55.5]}
5... cxd6 {[%clk 0:02:58.6]} 6. Nc3 {[%clk 0:02:55.7]} 6... g6 {[%clk 0:02:59]}
7. Be3 {[%clk 0:02:55.8]} 7... Bg7 {[%clk 0:02:59.4]} 8. Rc1 {[%clk 0:02:54.6]}
8... O-O {[%clk 0:02:59.7]} 9. b3 {[%clk 0:02:54.5]} 9... Nc6 {[%clk 0:02:59.9]}
10. Be2 {[%clk 0:02:49.3]} 10... e5 {[%clk 0:02:56.7]} 11. d5 {[%clk 0:02:43.1]}
11... Ne7 {[%clk 0:02:56.7]} 12. Nf3 {[%clk 0:02:37.9]} 12... Bg4 {[%clk
0:02:46]} 13. O-O {[%clk 0:02:35.9]} 13... Nf5 {[%clk 0:02:45.1]} 14. h3 {[%clk
0:02:13.4]} 14... Bxf3 {[%clk 0:02:38.5]} 15. Bxf3 {[%clk 0:02:14.3]} 15... Nxe3
{[%clk 0:02:38.7]} 16. fxe3 {[%clk 0:02:14.7]} 16... Bh6 {[%clk 0:02:34.2]} 17.
Qe1 {[%clk 0:02:13]} 17... Nd7 {[%clk 0:02:32]} 18. Bg4 {[%clk 0:02:06.4]} 18...
Nc5 {[%clk 0:02:27.7]} 19. Rd1 {[%clk 0:02:05]} 19... Qg5 {[%clk 0:02:21.1]} 20.
b4 {[%clk 0:01:57.2]} 20... Qxe3+ {[%clk 0:02:16.3]} 21. Qxe3 {[%clk 0:01:57]}
21... Bxe3+ {[%clk 0:02:17.2]} 22. Kh1 {[%clk 0:01:56.4]} 22... Na6 {[%clk
0:02:11.4]} 23. a3 {[%clk 0:01:50.7]} 23... f5 {[%clk 0:02:08]} 24. Be2 {[%clk
0:01:50.4]} 24... Nc7 {[%clk 0:01:54.2]} 25. c5 {[%clk 0:01:45.9]} 25... Rfd8
{[%clk 0:01:42.5]} 26. c6 {[%clk 0:01:42.7]} 26... bxc6 {[%clk 0:01:23.9]} 27.
dxc6 {[%clk 0:01:42.5]} 27... Kg7 {[%clk 0:01:14.3]} 28. Bc4 {[%clk 0:01:38.9]}
28... Bd4 {[%clk 0:01:10.4]} 29. Nb5 {[%clk 0:01:33.9]} 29... Nxb5 {[%clk
0:01:05.1]} 30. Bxb5 {[%clk 0:01:34.8]} 30... a5 {[%clk 0:01:01.2]} 31. Rc1
{[%clk 0:01:31.1]} 31... Rdc8 {[%clk 0:00:56.8]} 32. Rc2 {[%clk 0:01:12.2]}
32... Rc7 {[%clk 0:00:56.5]} 33. bxa5 {[%clk 0:01:00.2]} 33... Rxa5 {[%clk
0:00:54.4]} 34. a4 {[%clk 0:01:00.9]} 34... e4 {[%clk 0:00:41.8]} 35. g4 {[%clk
0:00:50.4]} 35... Kf6 {[%clk 0:00:33.8]} 36. Rc4 {[%clk 0:00:44.2]} 36... Ke5
{[%clk 0:00:29.4]} 37. Rd1 {[%clk 0:00:43.2]} 37... Bc5 {[%clk 0:00:24.4]} 38.
Rc2 {[%clk 0:00:36.5]} 38... f4 {[%clk 0:00:20.5]} 39. Rcd2 {[%clk 0:00:36.8]}
39... e3 {[%clk 0:00:18.6]} 40. Rd5+ {[%clk 0:00:36.7]} 40... Kf6 {[%clk
0:00:16.2]} 41. Kg2 {[%clk 0:00:35.3]} 41... g5 {[%clk 0:00:15.7]} 42. Kf3
{[%clk 0:00:35.3]} 42... Ra8 {[%clk 0:00:14.5]} 43. Rf5+ {[%clk 0:00:34.5]}
43... Kg6 {[%clk 0:00:12.1]} 44. Rdd5 {[%clk 0:00:35.2]} 44... h6 {[%clk
0:00:11.4]} 45. Bd3 {[%clk 0:00:31.5]} 45... Kg7 {[%clk 0:00:10.5]} 46. Bb5
{[%clk 0:00:31.8]} 46... Re8 {[%clk 0:00:10.2]} 47. Ke2 {[%clk 0:00:26.1]} 47...
Re4 {[%clk 0:00:08.1]} 48. a5 {[%clk 0:00:20.4]} 48... Rb4 {[%clk 0:00:08.3]}
49. Rxc5 {[%clk 0:00:11.4]} 49... dxc5 {[%clk 0:00:07.7]} 50. Rxc5 {[%clk
0:00:12.3]} 50... Rb2+ {[%clk 0:00:07.6]} 51. Ke1 {[%clk 0:00:12.4]} 51... Rb1+
{[%clk 0:00:06.9]} 52. Ke2 {[%clk 0:00:12.6]} 52... Rb2+ {[%clk 0:00:07.3]} 53.
Ke1 {[%clk 0:00:13.3]} 53... Rb1+ {[%clk 0:00:06]} 54. Ke2 {[%clk 0:00:13.8]}
54... Rb2+ {[%clk 0:00:04.5]} 1/2-1/2

[Event "Late-Titled-Tuesday-Blitz-September-05-2023"]
[Site "Chess.com"]
[Date "2023.09.05"]
[Round "6"]
[White "Gogolev_Artemy"]
[Black "Mesa_1"]
[Result "0-1"]
[WhiteElo "2436"]
[BlackElo "2611"]
[TimeControl "180+1"]
[EndTime "15:07:45 PDT"]
[Termination "Mesa_1 won on time"]

1. d4 {[%clk 0:02:55.1]} 1... Nf6 {[%clk 0:02:59.5]} 2. c4 {[%clk 0:02:51.7]}
2... g6 {[%clk 0:02:59.5]} 3. Nf3 {[%clk 0:02:51.2]} 3... Bg7 {[%clk 0:02:59.8]}
4. g3 {[%clk 0:02:51.8]} 4... O-O {[%clk 0:03:00.4]} 5. Bg2 {[%clk 0:02:52.4]}
5... d6 {[%clk 0:03:01.1]} 6. O-O {[%clk 0:02:53]} 6... c6 {[%clk 0:03:01.7]} 7.
Nc3 {[%clk 0:02:53.4]} 7... Bf5 {[%clk 0:03:01.5]} 8. Nh4 {[%clk 0:02:50.6]}
8... Be6 {[%clk 0:02:59.1]} 9. Qd3 {[%clk 0:02:44.2]} 9... Na6 {[%clk
0:02:56.3]} 10. a3 {[%clk 0:02:41.9]} 10... d5 {[%clk 0:02:49.8]} 11. cxd5
{[%clk 0:02:22.5]} 11... cxd5 {[%clk 0:02:50.7]} 12. Bf4 {[%clk 0:02:17.2]}
12... Rc8 {[%clk 0:02:47]} 13. Rac1 {[%clk 0:02:16.1]} 13... Qa5 {[%clk
0:02:35.8]} 14. Nf3 {[%clk 0:01:54.9]} 14... Bf5 {[%clk 0:02:33.1]} 15. Qe3
{[%clk 0:01:54.8]} 15... Ne4 {[%clk 0:02:27.1]} 16. Nxe4 {[%clk 0:01:37.6]}
16... Bxe4 {[%clk 0:02:28]} 17. Ne5 {[%clk 0:01:34.5]} 17... Bxg2 {[%clk
0:02:25.4]} 18. Kxg2 {[%clk 0:01:35.4]} 18... Qb5 {[%clk 0:02:06.6]} 19. b4
{[%clk 0:01:18.5]} 19... f6 {[%clk 0:02:04.5]} 20. Nd3 {[%clk 0:01:16.3]} 20...
Kf7 {[%clk 0:02:03.7]} 21. Bh6 {[%clk 0:01:08.8]} 21... Bxh6 {[%clk 0:01:46.3]}
22. Qxh6 {[%clk 0:01:08.2]} 22... Kg8 {[%clk 0:01:46.1]} 23. Nf4 {[%clk
0:01:05.9]} 23... Qe8 {[%clk 0:01:39.3]} 24. Nxd5 {[%clk 0:00:59.4]} 24... Rd8
{[%clk 0:01:40]} 25. Nf4 {[%clk 0:00:56.6]} 25... Qf7 {[%clk 0:01:26.8]} 26. d5
{[%clk 0:00:53.6]} 26... Rfe8 {[%clk 0:01:25.2]} 27. Rfd1 {[%clk 0:00:51.4]}
27... Nb8 {[%clk 0:01:24.6]} 28. Rc7 {[%clk 0:00:42.9]} 28... Rd7 {[%clk
0:01:16.4]} 29. Rxd7 {[%clk 0:00:28.3]} 29... Nxd7 {[%clk 0:01:14.7]} 30. Qh3
{[%clk 0:00:28.8]} 30... f5 {[%clk 0:01:09.3]} 31. e4 {[%clk 0:00:23.3]} 31...
Ne5 {[%clk 0:00:52.5]} 32. exf5 {[%clk 0:00:22.1]} 32... gxf5 {[%clk 0:00:53.4]}
33. Re1 {[%clk 0:00:21.3]} 33... Ng6 {[%clk 0:00:49.7]} 34. Ne6 {[%clk
0:00:19.4]} 34... Rc8 {[%clk 0:00:43.8]} 35. Ng5 {[%clk 0:00:19.6]} 35... Qxd5+
{[%clk 0:00:43.3]} 36. Nf3 {[%clk 0:00:18.5]} 36... Rc3 {[%clk 0:00:41.4]} 37.
Re3 {[%clk 0:00:13.5]} 37... Rxe3 {[%clk 0:00:41.7]} 38. fxe3 {[%clk 0:00:14.4]}
38... e6 {[%clk 0:00:34.1]} 39. Qh6 {[%clk 0:00:12.2]} 39... Qe4 {[%clk
0:00:27.5]} 40. Kf2 {[%clk 0:00:10.7]} 40... Qc2+ {[%clk 0:00:22]} 41. Kf1
{[%clk 0:00:07.3]} 41... Qd1+ {[%clk 0:00:22.2]} 42. Kf2 {[%clk 0:00:07.2]}
42... Qc2+ {[%clk 0:00:21.5]} 43. Kf1 {[%clk 0:00:07.3]} 43... Qc7 {[%clk
0:00:16.9]} 44. Ng5 {[%clk 0:00:05.6]} 44... Qc1+ {[%clk 0:00:16.9]} 45. Kg2
{[%clk 0:00:04]} 45... Qc2+ {[%clk 0:00:17.8]} 46. Kh3 {[%clk 0:00:03.1]} 46...
Qc7 {[%clk 0:00:17.3]} 47. Nxe6 {[%clk 0:00:02.9]} 47... Qe7 {[%clk 0:00:15.3]}
48. Nf4 {[%clk 0:00:02.1]} 48... Qxe3 {[%clk 0:00:11.1]} 0-1

[Event "Late-Titled-Tuesday-Blitz-September-05-2023"]
[Site "Chess.com"]
[Date "2023.09.05"]
[Round "6"]
[White "Marcin"]
[Black "delqate"]
[Result "0-1"]
[WhiteElo "2472"]
[BlackElo "2382"]
[TimeControl "180+1"]
[EndTime "15:07:50 PDT"]
[Termination "delqate won on time"]

1. e4 {[%clk 0:03:00.9]} 1... e6 {[%clk 0:02:26]} 2. d4 {[%clk 0:02:57.9]} 2...
d5 {[%clk 0:02:26.9]} 3. e5 {[%clk 0:02:58.4]} 3... c5 {[%clk 0:02:26.8]} 4. c3
{[%clk 0:02:58.6]} 4... Nc6 {[%clk 0:02:27.7]} 5. Nf3 {[%clk 0:02:58.2]} 5...
Bd7 {[%clk 0:02:28.4]} 6. Be2 {[%clk 0:02:57.8]} 6... Nge7 {[%clk 0:02:28.6]} 7.
Na3 {[%clk 0:02:55.1]} 7... Nf5 {[%clk 0:02:27.6]} 8. Nc2 {[%clk 0:02:53.7]}
8... cxd4 {[%clk 0:02:27]} 9. cxd4 {[%clk 0:02:51.7]} 9... Qa5+ {[%clk 0:02:24]}
10. Bd2 {[%clk 0:02:42.5]} 10... Qb6 {[%clk 0:02:24.6]} 11. Bc3 {[%clk
0:02:41.7]} 11... Bb4 {[%clk 0:02:22.4]} 12. Nxb4 {[%clk 0:02:24.5]} 12... Nxb4
{[%clk 0:02:22.2]} 13. O-O {[%clk 0:02:22.8]} 13... O-O {[%clk 0:02:17.5]} 14.
Qd2 {[%clk 0:01:48]} 14... Nc6 {[%clk 0:02:11.2]} 15. g4 {[%clk 0:01:44.1]}
15... Nfe7 {[%clk 0:02:11.2]} 16. Bd3 {[%clk 0:01:39.8]} 16... f6 {[%clk
0:01:55.4]} 17. Rae1 {[%clk 0:01:01.8]} 17... fxe5 {[%clk 0:01:50.6]} 18. Nxe5
{[%clk 0:01:01.8]} 18... Nxe5 {[%clk 0:01:51.3]} 19. dxe5 {[%clk 0:01:02.5]}
19... a5 {[%clk 0:01:39.5]} 20. Bd4 {[%clk 0:00:54.1]} 20... Qd8 {[%clk
0:01:32.8]} 21. f4 {[%clk 0:00:52.2]} 21... Nc6 {[%clk 0:01:23.3]} 22. Bc5
{[%clk 0:00:45.8]} 22... Qh4 {[%clk 0:01:08.2]} 23. Qg2 {[%clk 0:00:40.6]} 23...
Rfc8 {[%clk 0:01:02.1]} 24. Re3 {[%clk 0:00:35.6]} 24... Qd8 {[%clk 0:00:34.2]}
25. Rh3 {[%clk 0:00:32.4]} 25... g6 {[%clk 0:00:32.4]} 26. Bd6 {[%clk
0:00:26.6]} 26... Nb4 {[%clk 0:00:30.9]} 27. Bb1 {[%clk 0:00:24.5]} 27... Qb6+
{[%clk 0:00:27.5]} 28. Kh1 {[%clk 0:00:23.8]} 28... Bb5 {[%clk 0:00:21.7]} 29.
Rg1 {[%clk 0:00:19.5]} 29... Qd4 {[%clk 0:00:20.6]} 30. f5 {[%clk 0:00:18.7]}
30... Bd3 {[%clk 0:00:16.9]} 31. Bxd3 {[%clk 0:00:17.3]} 31... Nxd3 {[%clk
0:00:17.8]} 32. Rf1 {[%clk 0:00:15.6]} 32... Rc1 {[%clk 0:00:15.8]} 33. Rxd3
{[%clk 0:00:09]} 33... Rxf1+ {[%clk 0:00:08.6]} 34. Qxf1 {[%clk 0:00:08.3]}
34... Qe4+ {[%clk 0:00:09.5]} 35. Kg1 {[%clk 0:00:08.1]} 35... Qxg4+ {[%clk
0:00:09.7]} 36. Rg3 {[%clk 0:00:07.6]} 36... Qd4+ {[%clk 0:00:09.5]} 37. Kh1
{[%clk 0:00:05.1]} 37... Qe4+ {[%clk 0:00:09.2]} 38. Qg2 {[%clk 0:00:04.3]}
38... Qxf5 {[%clk 0:00:09.8]} 39. Rf3 {[%clk 0:00:03.7]} 39... Qb1+ {[%clk
0:00:09.7]} 40. Rf1 {[%clk 0:00:03.9]} 40... Qe4 {[%clk 0:00:09.8]} 41. Qxe4
{[%clk 0:00:03.6]} 41... dxe4 {[%clk 0:00:10.7]} 42. Re1 {[%clk 0:00:03.9]}
42... Rc8 {[%clk 0:00:10.3]} 43. Rxe4 {[%clk 0:00:04.4]} 43... Rc1+ {[%clk
0:00:11.2]} 44. Kg2 {[%clk 0:00:04.8]} 44... Rc2+ {[%clk 0:00:12.1]} 45. Kg3
{[%clk 0:00:05.2]} 45... Rxb2 {[%clk 0:00:13]} 46. Ra4 {[%clk 0:00:05.1]} 46...
Rb5 {[%clk 0:00:12.1]} 47. Kf4 {[%clk 0:00:04.6]} 47... b6 {[%clk 0:00:12.6]}
48. Kg5 {[%clk 0:00:04.2]} 48... Kg7 {[%clk 0:00:12.1]} 49. Rf4 {[%clk
0:00:03.5]} 49... h6+ {[%clk 0:00:11.9]} 50. Kg4 {[%clk 0:00:03.3]} 50... Rb2
{[%clk 0:00:09.6]} 51. Rc4 {[%clk 0:00:02.3]} 51... h5+ {[%clk 0:00:08.6]} 52.
Kg5 {[%clk 0:00:01]} 52... Rg2+ {[%clk 0:00:09.1]} 53. Kf4 {[%clk 0:00:01.4]}
53... Rg4+ {[%clk 0:00:09.7]} 0-1

[Event "Late-Titled-Tuesday-Blitz-September-05-2023"]
[Site "Chess.com"]
[Date "2023.09.05"]
[Round "6"]
[White "JG-17"]
[Black "IMGC"]
[Result "0-1"]
[WhiteElo "2599"]
[BlackElo "2435"]
[TimeControl "180+1"]
[EndTime "15:07:54 PDT"]
[Termination "IMGC won by checkmate"]

1. e4 {[%clk 0:03:00.9]} 1... b6 {[%clk 0:02:53.6]} 2. Nc3 {[%clk 0:02:59.7]}
2... Bb7 {[%clk 0:02:54]} 3. d4 {[%clk 0:02:59.3]} 3... e6 {[%clk 0:02:54.6]} 4.
g3 {[%clk 0:02:59.6]} 4... Nf6 {[%clk 0:02:49.4]} 5. Bg2 {[%clk 0:02:59.8]} 5...
Bb4 {[%clk 0:02:43]} 6. Qd3 {[%clk 0:02:50.6]} 6... d5 {[%clk 0:02:41.3]} 7. e5
{[%clk 0:02:50.1]} 7... Ne4 {[%clk 0:02:41.1]} 8. Ne2 {[%clk 0:02:43.5]} 8...
Ba6 {[%clk 0:02:30.1]} 9. Qe3 {[%clk 0:02:43.6]} 9... Bxe2 {[%clk 0:02:29.4]}
10. Kxe2 {[%clk 0:02:44.5]} 10... Nxc3+ {[%clk 0:02:23]} 11. bxc3 {[%clk
0:02:45.4]} 11... Be7 {[%clk 0:02:22.8]} 12. f4 {[%clk 0:02:44.8]} 12... c5
{[%clk 0:02:21.7]} 13. Kf2 {[%clk 0:02:35.3]} 13... Nc6 {[%clk 0:02:19.8]} 14.
Rd1 {[%clk 0:02:33]} 14... cxd4 {[%clk 0:02:17.2]} 15. cxd4 {[%clk 0:02:33.3]}
15... Na5 {[%clk 0:02:17.3]} 16. Kg1 {[%clk 0:02:26.4]} 16... Rc8 {[%clk
0:02:15.3]} 17. c3 {[%clk 0:02:25.4]} 17... g6 {[%clk 0:02:14.8]} 18. Bf1 {[%clk
0:02:22.3]} 18... h5 {[%clk 0:02:08.2]} 19. Bb5+ {[%clk 0:02:18.9]} 19... Kf8
{[%clk 0:02:08.7]} 20. a4 {[%clk 0:02:15.1]} 20... Qc7 {[%clk 0:02:07.6]} 21.
Bb2 {[%clk 0:01:56.3]} 21... Nc4 {[%clk 0:01:59.7]} 22. Bxc4 {[%clk 0:01:56.1]}
22... Qxc4 {[%clk 0:02:00.6]} 23. Qd3 {[%clk 0:01:22.1]} 23... Kg7 {[%clk
0:01:47.1]} 24. a5 {[%clk 0:01:07.1]} 24... b5 {[%clk 0:01:42.6]} 25. Ba3 {[%clk
0:01:03.6]} 25... Bxa3 {[%clk 0:01:34.4]} 26. Rxa3 {[%clk 0:01:04.5]} 26... a6
{[%clk 0:01:33.3]} 27. Qd2 {[%clk 0:00:58.6]} 27... Rb8 {[%clk 0:01:08]} 28. Rb1
{[%clk 0:00:57.1]} 28... Rhc8 {[%clk 0:01:07.3]} 29. Rb4 {[%clk 0:00:56]} 29...
Qc6 {[%clk 0:01:06.9]} 30. h3 {[%clk 0:00:50.6]} 30... Qd7 {[%clk 0:01:05.3]}
31. Kg2 {[%clk 0:00:47.8]} 31... Rc6 {[%clk 0:00:59.6]} 32. Rbb3 {[%clk
0:00:31.9]} 32... Rbc8 {[%clk 0:00:59.2]} 33. g4 {[%clk 0:00:30.3]} 33... hxg4
{[%clk 0:00:57.9]} 34. hxg4 {[%clk 0:00:31.2]} 34... Qe7 {[%clk 0:00:53.9]} 35.
g5 {[%clk 0:00:30.1]} 35... Rh8 {[%clk 0:00:51.6]} 36. Ra1 {[%clk 0:00:29.2]}
36... Rcc8 {[%clk 0:00:45.9]} 37. Rbb1 {[%clk 0:00:29]} 37... Qc7 {[%clk
0:00:45.2]} 38. Rc1 {[%clk 0:00:25.7]} 38... Rh4 {[%clk 0:00:41.5]} 39. Qf2
{[%clk 0:00:25.3]} 39... Rch8 {[%clk 0:00:39.9]} 40. Qg3 {[%clk 0:00:09.1]}
40... Qc4 {[%clk 0:00:38.2]} 41. Rc2 {[%clk 0:00:08.1]} 41... Qb3 {[%clk
0:00:29.5]} 42. Rac1 {[%clk 0:00:08.2]} 42... Qc4 {[%clk 0:00:25.5]} 43. Rd2
{[%clk 0:00:05.9]} 43... Qa4 {[%clk 0:00:17]} 44. Rdc2 {[%clk 0:00:06.1]} 44...
Qxa5 {[%clk 0:00:16.4]} 45. Rb2 {[%clk 0:00:02.3]} 45... Qa3 {[%clk 0:00:15.5]}
46. Rbc2 {[%clk 0:00:02.5]} 46... Qa4 {[%clk 0:00:15.4]} 47. Rb2 {[%clk
0:00:02.7]} 47... Qc4 {[%clk 0:00:15.3]} 48. Rbc2 {[%clk 0:00:02.5]} 48... a5
{[%clk 0:00:15.3]} 49. Rb2 {[%clk 0:00:02.5]} 49... a4 {[%clk 0:00:15.4]} 50.
Rbc2 {[%clk 0:00:02.7]} 50... a3 {[%clk 0:00:14.1]} 51. Ra1 {[%clk 0:00:03]}
51... Rh3 {[%clk 0:00:13.9]} 52. Qxh3 {[%clk 0:00:02.6]} 52... Rxh3 {[%clk
0:00:13]} 53. Kxh3 {[%clk 0:00:03.4]} 53... Qd3+ {[%clk 0:00:13.5]} 54. Kg4
{[%clk 0:00:03]} 54... Qxc2 {[%clk 0:00:14]} 55. Rxa3 {[%clk 0:00:03.7]} 55...
Qb2 {[%clk 0:00:13.4]} 56. Ra7 {[%clk 0:00:02.6]} 56... Qxc3 {[%clk 0:00:12.5]}
57. f5 {[%clk 0:00:03.3]} 57... gxf5+ {[%clk 0:00:12.1]} 58. Kh5 {[%clk
0:00:03.3]} 58... Qh3# {[%clk 0:00:11.7]} 0-1